bitfinex-derivatives/quotes_BTCF0:USTF0_20250327
["timestamp","ask_amount","ask_price","bid_price","bid_amount"]
[1743035386281,0.032,87126.0,87125.0,0.1147638]
[1743035386478,0.032,87126.0,87125.0,0.1160838]
[1743035386779,0.03332,87126.0,87125.0,0.1823838]
[1743035386972,0.03332,87126.0,87125.0,1.6823838]
[1743035387271,0.0657,87126.0,87125.0,1.6823838]
[1743035387477,0.032,87126.0,87125.0,1.6823838]
[1743035387864,0.03814697,87126.0,87125.0,1.6823838]
[1743035388270,0.00614697,87126.0,87125.0,1.6823838]
[1743035388681,8e-05,87128.0,87127.0,0.1147612]
[1743035388877,0.00889819,87128.0,87127.0,0.1160812]
[1743035389188,0.37101632,87146.0,87136.0,0.1147493]
[1743035389368,8e-05,87141.0,87136.0,0.5877493]
[1743035389567,0.00659391,87137.0,87136.0,0.5877493]
[1743035389764,0.00659391,87137.0,87136.0,0.5467093]
[1743035389968,0.01541389,87137.0,87136.0,0.6575893]
[1743035390370,0.01541389,87137.0,87136.0,0.66769902]
[1743035391272,0.00741389,87137.0,87136.0,0.66769902]
[1743035391578,0.0318,87140.0,87139.0,0.1147454]
[1743035391773,0.03240001,87140.0,87139.0,0.1160654]
[1743035392081,0.00060001,87140.0,87139.0,0.1160654]
[1743035392291,0.03338,87145.0,87144.0,0.1147388]
[1743035392575,0.0333,87145.0,87144.0,0.1160988]
[1743035393082,0.0333,87145.0,87144.0,0.1851988]
[1743035393374,0.03466,87145.0,87144.0,0.1851988]
[1743035393573,0.0648,87145.0,87144.0,0.1851988]
[1743035393786,0.1795375,87145.0,87144.0,0.1851988]
[1743035394080,0.06612,87145.0,87144.0,0.2960388]
[1743035394275,0.06616,87145.0,87144.0,0.2960388]
[1743035394671,0.0648,87145.0,87144.0,0.2960388]
[1743035394871,0.0333,87145.0,87144.0,0.2960388]
[1743035395277,0.03462,87145.0,87144.0,0.2960388]
[1743035395481,0.03462,87145.0,87144.0,0.2961588]
[1743035396272,0.00132,87145.0,87144.0,0.2961588]
[1743035396572,0.1147296,87151.0,87150.0,0.1147309]
[1743035396873,0.1160896,87151.0,87150.0,1.6160509]
[1743035397078,0.1528896,87151.0,87150.0,1.6160509]
[1743035397278,0.1528896,87151.0,87150.0,1.6852509]
[1743035397476,0.1528896,87151.0,87150.0,0.1852509]
[1743035397980,0.03816,87151.0,87150.0,0.1852509]
[1743035398477,0.00136,87151.0,87150.0,0.19370298]
[1743035398683,0.0004,87153.0,87152.0,0.1147282]
[1743035398976,0.0004,87153.0,87152.0,0.4768482]
[1743035399172,0.1151269,87153.0,87152.0,1.9768482]
[1743035399372,0.0004,87153.0,87152.0,1.9768482]
[1743035399678,0.0004,87153.0,87152.0,1.98683434]
[1743035399880,0.0004,87153.0,87152.0,2.05603434]
[1743035401775,0.0004,87153.0,87152.0,0.66735434]
[1743035401976,0.1151269,87153.0,87152.0,0.55603434]
[1743035402181,0.1151269,87153.0,87152.0,0.00132]
[1743035402182,0.11572691,87153.0,87152.0,0.00132]
[1743035402480,0.19677448,87153.0,87152.0,0.00132]
[1743035402685,0.19617447,87153.0,87152.0,0.1160482]
[1743035402983,0.1860469,87153.0,87152.0,0.1477482]
[1743035403170,0.1860469,87153.0,87152.0,0.1816482]
[1743035403371,0.0804913,87153.0,87152.0,0.1816482]
[1743035403585,0.1952182,87153.0,87152.0,0.1816482]
[1743035403778,0.20154648,87153.0,87152.0,0.1816482]
[1743035404883,0.20022648,87153.0,87152.0,0.1816482]
[1743035409685,0.1721134,87142.0,87136.0,0.0333]
[1743035409991,0.1015,87141.0,87140.0,0.27300509]
[1743035410184,0.1015,87141.0,87140.0,1.88774909]
[1743035410185,0.2171627,87141.0,87140.0,1.88774909]
[1743035410384,0.2162427,87141.0,87140.0,1.88774909]
[1743035410585,0.22257098,87141.0,87140.0,1.88774909]
[1743035410892,0.58337098,87141.0,87140.0,1.77300509]
[1743035411187,0.58397099,87141.0,87140.0,1.77300509]
[1743035411489,0.58397099,87141.0,87140.0,0.27300509]
[1743035413482,0.59387569,87141.0,87140.0,0.27300509]
[1743035413775,0.60272253,87141.0,87140.0,0.27300509]
[1743035414581,0.59387569,87141.0,87140.0,0.27300509]
[1743035415393,0.74387569,87141.0,87140.0,0.27300509]
[1743035415690,0.74387569,87141.0,87140.0,0.00092]
[1743035415691,0.60271096,87141.0,87140.0,0.00092]
[1743035415876,0.60271096,87141.0,87133.0,0.0341]
[1743035415877,0.1147519,87134.0,87133.0,0.0341]
[1743035416083,0.48502717,87134.0,87133.0,0.03506]
[1743035416585,0.48252018,87134.0,87133.0,0.03506]
[1743035416786,0.55052018,87134.0,87133.0,0.03506]
[1743035417389,0.55052018,87134.0,87133.0,0.1498133]
[1743035417782,0.55052018,87134.0,87133.0,0.03506]
[1743035418197,0.43576828,87134.0,87133.0,0.1498133]
[1743035418492,0.48252018,87134.0,87133.0,0.1498133]
[1743035418690,0.48252018,87134.0,87133.0,0.2165133]
[1743035419099,0.48252018,87134.0,87133.0,1.7165133]
[1743035419795,0.48252018,87134.0,87133.0,0.06936]
[1743035419980,0.55232018,87134.0,87133.0,0.06936]
[1743035420293,0.55232018,87134.0,87133.0,0.0684]
[1743035421788,0.56114512,87134.0,87133.0,0.0684]
[1743035421991,0.1147546,87132.0,87131.0,0.00017222]
[1743035422186,0.12417955,87132.0,87131.0,0.00017222]
[1743035422386,0.19067955,87132.0,87131.0,0.00017222]
[1743035422591,0.19700783,87132.0,87131.0,0.00017222]
[1743035422793,0.18818289,87132.0,87131.0,0.00017222]
[1743035423796,0.19710117,87132.0,87131.0,0.00017222]
[1743035425602,0.24224117,87132.0,87131.0,0.11492812]
[1743035425789,0.24224117,87132.0,87131.0,0.11584812]
[1743035426089,0.24224117,87132.0,87131.0,0.07039222]
[1743035427600,0.24219056,87132.0,87131.0,0.07039222]
[1743035428297,0.27649056,87132.0,87131.0,0.07039222]
[1743035428795,0.24219056,87132.0,87131.0,0.07039222]
[1743035429794,0.24219056,87132.0,87131.0,0.06947222]
[1743035429991,0.24219056,87132.0,87131.0,0.07039222]
[1743035433504,0.27479056,87132.0,87131.0,0.07039222]
[1743035433700,0.1147717,87119.0,87113.0,0.5243785]
[1743035433893,0.1147717,87119.0,87111.0,0.3608]
[1743035433894,0.12463937,87119.0,87118.0,0.20551063]
[1743035434204,0.16306765,87119.0,87118.0,0.32028363]
[1743035434392,0.13096765,87119.0,87118.0,0.32028363]
[1743035435301,0.13095414,87119.0,87118.0,0.32028363]
[1743035435699,0.01618244,87119.0,87118.0,0.32028363]
[1743035436001,0.13095414,87119.0,87118.0,0.32028363]
[1743035436200,0.13095414,87119.0,87118.0,0.20551063]
[1743035436702,0.16475414,87119.0,87118.0,0.00096]
[1743035437204,0.16475414,87119.0,87118.0,0.03766]
[1743035438204,0.19855414,87119.0,87118.0,0.03766]
[1743035438900,0.19855414,87119.0,87118.0,0.0367]
[1743035439205,0.19864276,87119.0,87118.0,0.06992]
[1743035439394,0.13104276,87119.0,87118.0,0.06992]
[1743035439793,0.16524276,87119.0,87118.0,0.06992]
[1743035440406,0.20154276,87119.0,87118.0,0.06992]
[1743035442506,0.21175416,87119.0,87118.0,1.56992]
[1743035443397,0.14125416,87119.0,87118.0,1.56992]
[1743035444406,0.17325416,87119.0,87118.0,1.56992]
[1743035444600,0.20735416,87119.0,87118.0,1.56992]
[1743035445611,0.20635416,87119.0,87118.0,1.56992]
[1743035445911,0.20727416,87119.0,87118.0,1.56992]
[1743035447212,0.20727416,87119.0,87118.0,1.684693]
[1743035447516,0.20727416,87119.0,87118.0,1.56992]
[1743035448313,0.20727416,87119.0,87118.0,1.684693]
[1743035448615,0.20749045,87119.0,87118.0,1.56992]
[1743035448916,0.20749045,87119.0,87118.0,1.684693]
[1743035450715,0.17339045,87119.0,87118.0,1.684693]
[1743035451717,0.17339045,87119.0,87118.0,1.88924363]
[1743035454213,0.1732595,87119.0,87118.0,1.88924363]
[1743035454820,0.2058595,87119.0,87118.0,1.88924363]
[1743035455520,0.2058595,87119.0,87118.0,0.38924363]
[1743035455716,0.2058595,87119.0,87118.0,0.184693]
[1743035458415,0.0264878,87119.0,87118.0,0.184693]
[1743035458610,0.0255678,87119.0,87118.0,0.184693]
[1743035458814,0.0255678,87119.0,87118.0,0.19508855]
[1743035459117,0.13661104,87132.0,87131.0,0.1147559]
[1743035459317,0.13721105,87132.0,87131.0,0.1156759]
[1743035459527,0.13721105,87132.0,87131.0,0.2173759]
[1743035459724,0.00060001,87132.0,87131.0,1.7173759]
[1743035460023,0.1147506,87135.0,87134.0,0.1721262]
[1743035460229,0.1147506,87135.0,87134.0,0.5339262]
[1743035461821,0.1147506,87135.0,87134.0,0.54398329]
[1743035462817,0.1147506,87135.0,87134.0,0.5339262]
[1743035463018,8e-05,87136.0,87135.0,0.1147506]
[1743035463223,8e-05,87136.0,87135.0,0.1823706]
[1743035464824,0.1148293,87136.0,87135.0,0.1823706]
[1743035465420,8e-05,87136.0,87135.0,0.1823706]
[1743035468923,8e-05,87136.0,87135.0,0.5431706]
[1743035472232,8e-05,87136.0,87135.0,0.74777897]
[1743035473837,8e-05,87136.0,87135.0,0.38697897]
[1743035474140,8e-05,87136.0,87135.0,0.74777897]
[1743035474531,1e-07,87136.0,87135.0,0.74777897]
[1743035474725,0.0573545,87167.0,87152.0,0.1147282]
[1743035474932,0.0329,87159.0,87152.0,0.4764482]
[1743035475131,0.00648801,87153.0,87152.0,2.0793482]
[1743035475434,0.00648801,87153.0,87152.0,2.4889482]
[1743035475823,0.00044328,87153.0,87152.0,2.4889482]
[1743035476427,8e-08,87153.0,87152.0,2.49901434]
[1743035476634,0.17143568,87174.0,87168.0,0.1147072]
[1743035476827,0.00100001,87169.0,87168.0,0.4764272]
[1743035477025,0.1161059,87169.0,87168.0,0.6523872]
[1743035477235,0.1160259,87169.0,87168.0,2.0414272]
[1743035477442,0.1151059,87169.0,87168.0,2.0414272]
[1743035477630,0.0004,87169.0,87168.0,2.0414272]
[1743035477833,0.068,87169.0,87168.0,2.0414272]
[1743035478025,0.1827059,87169.0,87168.0,2.0414272]
[1743035479628,0.0004,87169.0,87168.0,2.4022272]
[1743035479937,0.0004,87169.0,87168.0,2.4361272]
[1743035480747,0.0004,87169.0,87168.0,2.4022272]
[1743035485441,0.1151059,87169.0,87168.0,2.4022272]
[1743035485636,0.1151059,87169.0,87168.0,2.22252]
[1743035485832,0.12419269,87169.0,87168.0,0.00092]
[1743035486138,0.20829018,87169.0,87168.0,0.00092]
[1743035486338,0.21475348,87169.0,87168.0,0.00092]
[1743035487247,0.23561105,87169.0,87168.0,0.00092]
[1743035489545,0.19453326,87169.0,87168.0,0.00092]
[1743035490335,0.21929402,87169.0,87168.0,0.00092]
[1743035490642,0.172066,87166.0,87165.0,0.1147101]
[1743035490840,0.30914676,87166.0,87165.0,0.1156301]
[1743035491046,0.30914676,87166.0,87165.0,0.00092]
[1743035491438,0.1147328,87152.0,87151.0,0.1147253]
[1743035491639,0.1147328,87152.0,87144.0,1.86097212]
[1743035491640,0.1147375,87145.0,87144.0,1.50017212]
[1743035491844,0.50029826,87145.0,87144.0,1.50109212]
[1743035492044,0.58393655,87145.0,87144.0,0.00109212]
[1743035492247,0.1147401,87143.0,87138.0,0.27301053]
[1743035492438,0.25342175,87143.0,87142.0,0.20528837]
[1743035493035,0.26389901,87143.0,87142.0,0.20528837]
[1743035493236,0.26389901,87143.0,87142.0,0.00068]
[1743035495237,0.27254109,87143.0,87142.0,0.00068]
[1743035495949,0.15062383,87143.0,87142.0,0.00068]
[1743035496143,0.26202383,87143.0,87142.0,0.00068]
[1743035496339,0.02724165,87143.0,87142.0,0.1154214]
[1743035496544,0.02660165,87143.0,87142.0,1.6832214]
[1743035496843,0.00952337,87143.0,87142.0,1.6832214]
[1743035497244,0.12426347,87143.0,87142.0,1.6832214]
[1743035497743,0.12426347,87143.0,87142.0,1.56848]
[1743035498043,0.13072153,87143.0,87142.0,0.00068]
[1743035498247,0.13136153,87143.0,87142.0,0.00068]
[1743035498438,0.14168465,87143.0,87142.0,0.00068]
[1743035499351,0.1147506,87136.0,87135.0,0.1147506]
[1743035499549,0.48579397,87136.0,87135.0,0.1483906]
[1743035499746,0.55469397,87136.0,87135.0,0.1483906]
[1743035499938,0.56115203,87136.0,87135.0,0.1483906]
[1743035500737,0.56115203,87136.0,87135.0,0.03364]
[1743035501041,0.56115203,87136.0,87135.0,0.00064]
[1743035501844,0.56115203,87136.0,87135.0,0.0343]
[1743035502151,0.56115203,87136.0,87135.0,0.1490506]
[1743035502348,0.56115203,87136.0,87135.0,0.1496906]
[1743035502551,0.56115203,87136.0,87135.0,0.1843906]
[1743035503438,0.1147585,87129.0,87122.0,0.0347]
[1743035503642,0.48580187,87129.0,87128.0,0.00113909]
[1743035504049,0.56085993,87129.0,87128.0,0.00113909]
[1743035504940,0.56085993,87129.0,87128.0,0.00045909]
[1743035506052,0.56085993,87129.0,87120.0,0.06677212]
[1743035506053,0.1147691,87121.0,87120.0,0.06677212]
[1743035506245,0.60781226,87121.0,87120.0,0.00017212]
[1743035506445,0.1147796,87113.0,87112.0,0.20484876]
[1743035506649,0.1147796,87113.0,87103.0,0.34224624]
[1743035506650,0.0573904,87112.0,87103.0,0.34224624]
[1743035506950,0.4755849,87109.0,87108.0,0.27361053]
[1743035507138,0.48618828,87109.0,87108.0,0.27361053]
[1743035507338,0.49264634,87109.0,87108.0,0.27361053]
[1743035508151,0.50139238,87109.0,87108.0,0.27361053]
[1743035509148,0.50139238,87109.0,87100.0,0.00017212]
[1743035509149,0.1147954,87101.0,87100.0,0.00017212]
[1743035509355,0.60449683,87101.0,87100.0,0.00017212]
[1743035510347,0.60394663,87101.0,87100.0,0.00017212]
[1743035512241,0.60394102,87101.0,87100.0,1.50017212]
[1743035512448,0.60394102,87101.0,87100.0,1.50077212]
[1743035514148,0.59497346,87101.0,87100.0,1.50077212]
[1743035514346,0.60387,87101.0,87100.0,1.50077212]
[1743035514551,0.60386688,87101.0,87100.0,1.50077212]
[1743035516060,0.60386688,87101.0,87100.0,0.00077212]
[1743035516255,0.60386688,87101.0,87100.0,0.00017212]
[1743035516646,0.60386688,87101.0,87100.0,0.00081212]
[1743035516843,0.49222688,87101.0,87100.0,0.00081212]
[1743035517558,0.49222688,87101.0,87100.0,0.00017212]
[1743035517961,0.49222688,87101.0,87100.0,0.00077212]
[1743035518254,0.49226292,87101.0,87100.0,0.00077212]
[1743035519056,0.52576292,87101.0,87100.0,0.00077212]
[1743035519763,0.55826292,87101.0,87100.0,0.00077212]
[1743035520258,0.59116292,87101.0,87100.0,0.00017212]
[1743035520463,0.58223346,87101.0,87100.0,0.00077212]
[1743035521061,0.59123949,87101.0,87100.0,0.00077212]
[1743035521372,0.59124412,87101.0,87100.0,0.00077212]
[1743035521560,0.59124412,87101.0,87100.0,0.00017212]
[1743035522268,0.59124412,87101.0,87100.0,0.00145212]
[1743035522660,0.59124412,87101.0,87100.0,0.00017212]
[1743035523260,0.59124412,87101.0,87100.0,0.00077212]
[1743035523655,0.37754872,87101.0,87100.0,0.00077212]
[1743035523858,0.01674872,87101.0,87100.0,0.18326882]
[1743035524059,0.01546872,87101.0,87100.0,0.18326882]
[1743035524560,0.01546872,87101.0,87100.0,1.68326882]
[1743035526164,0.01546872,87101.0,87100.0,2.04406882]
[1743035526966,0.00901066,87101.0,87100.0,2.04406882]
[1743035528364,0.01531751,87101.0,87100.0,2.05443343]
[1743035528566,0.01531751,87101.0,87100.0,2.16583343]
[1743035528770,6e-08,87101.0,87100.0,2.72543343]
[1743035528953,8e-05,87104.0,87100.0,2.72543343]
[1743035529160,0.00017212,87109.0,87108.0,0.1147862]
[1743035529355,0.00145212,87109.0,87108.0,0.4755862]
[1743035529560,0.00017212,87109.0,87108.0,0.5458862]
[1743035530171,0.00149212,87109.0,87108.0,0.5458862]
[1743035530866,0.11495702,87109.0,87108.0,0.5458862]
[1743035531075,0.11623702,87109.0,87108.0,0.0703]
[1743035531266,0.18783702,87109.0,87108.0,0.1844862]
[1743035531468,0.18783702,87109.0,87108.0,0.1857662]
[1743035531767,0.18783702,87109.0,87108.0,0.07098]
[1743035531971,0.18783702,87109.0,87108.0,0.0697]
[1743035532168,0.22063702,87109.0,87108.0,0.0697]
[1743035532872,0.22063702,87109.0,87108.0,0.07098]
[1743035533865,0.22063702,87109.0,87108.0,0.00128]
[1743035536670,0.1721845,87106.0,87105.0,0.1147899]
[1743035536970,0.1734645,87106.0,87105.0,0.1852899]
[1743035537569,0.2434645,87106.0,87105.0,0.1852899]
[1743035537762,0.2434645,87106.0,87105.0,0.0705]
[1743035537959,0.2434645,87106.0,87105.0,0.0699]
[1743035538464,0.2434645,87106.0,87105.0,0.07054]
[1743035538861,0.2434645,87106.0,87105.0,0.00064]
[1743035539075,0.1147954,87101.0,87100.0,0.00017212]
[1743035539273,0.2275954,87101.0,87100.0,0.00017212]
[1743035539475,0.2975954,87101.0,87100.0,0.00017212]
[1743035540658,0.30668895,87101.0,87100.0,0.00017212]
[1743035541273,0.32337222,87101.0,87100.0,0.00017212]
[1743035543174,0.33409763,87101.0,87100.0,0.00017212]
[1743035543372,0.323831,87101.0,87100.0,0.00017212]
[1743035544365,0.69489596,87101.0,87100.0,0.00017212]
[1743035546873,0.69498448,87101.0,87100.0,0.00017212]
[1743035547673,0.68471952,87101.0,87100.0,0.00017212]
[1743035548673,0.68462268,87101.0,87100.0,0.00017212]
[1743035550663,0.68463181,87101.0,87100.0,0.00017212]
[1743035551264,0.66912081,87101.0,87100.0,0.00017212]
[1743035551978,0.55760081,87101.0,87100.0,0.00017212]
[1743035552176,0.66892081,87101.0,87100.0,0.00017212]
[1743035552378,0.6780367,87101.0,87100.0,0.00017212]
[1743035552578,0.6844111,87101.0,87100.0,0.00017212]
[1743035554182,0.78695994,87101.0,87100.0,0.00017212]
[1743035558274,0.78701433,87101.0,87100.0,0.00017212]
[1743035558476,0.79725479,87101.0,87100.0,0.00017212]
[1743035559478,0.43645479,87101.0,87100.0,0.00017212]
[1743035559686,0.79725479,87101.0,87100.0,0.00017212]
[1743035561779,0.33390595,87101.0,87100.0,0.00017212]
[1743035561979,0.68553567,87101.0,87100.0,0.00017212]
[1743035562175,0.66892081,87101.0,87100.0,0.00017212]
[1743035562683,0.55760081,87101.0,87100.0,0.00017212]
[1743035562880,0.67816588,87101.0,87100.0,0.00017212]
[1743035563084,0.69502946,87101.0,87100.0,0.00017212]
[1743035565490,0.83191256,87101.0,87100.0,0.00017212]
[1743035565989,0.83192814,87101.0,87100.0,0.00017212]
[1743035567893,0.81502152,87101.0,87100.0,0.00017212]
[1743035568193,0.83189994,87101.0,87100.0,0.00017212]
[1743035569685,0.47109994,87101.0,87100.0,0.00017212]
[1743035569894,0.69505193,87101.0,87100.0,0.00017212]
[1743035571699,0.69503933,87101.0,87100.0,0.00017212]
[1743035572088,0.1148007,87097.0,87094.0,0.0686]
[1743035572288,0.4862008,87097.0,87094.0,0.0686]
[1743035572490,0.60587922,87097.0,87094.0,0.0686]
[1743035574101,0.60587922,87097.0,87094.0,0.0348]
[1743035575598,0.60587922,87097.0,87095.0,0.0342]
[1743035576900,0.60587922,87097.0,87096.0,0.03435926]
[1743035577195,0.38827852,87097.0,87096.0,0.14916126]
[1743035577386,8e-05,87098.0,87097.0,0.1148007]
[1743035577588,0.28623048,87102.0,87101.0,0.1147954]
[1743035577789,0.28711049,87102.0,87101.0,1.6153954]
[1743035578087,0.28711049,87102.0,87101.0,1.65996926]
[1743035578498,0.28623048,87102.0,87101.0,1.65996926]
[1743035578695,0.1147948,87102.0,87101.0,1.65996926]
[1743035579091,0.1147922,87104.0,87103.0,0.1721858]
[1743035579298,0.20537214,87109.0,87108.0,0.1147862]
[1743035579495,0.20625215,87109.0,87108.0,0.1153862]
[1743035579803,0.32103705,87109.0,87108.0,0.1153862]
[1743035580105,0.32103705,87109.0,87108.0,0.1825862]
[1743035580605,0.32103705,87109.0,87108.0,0.2937862]
[1743035580794,0.32103705,87109.0,87108.0,0.3287862]
[1743035581909,0.11583703,87109.0,87108.0,0.3287862]
[1743035582097,0.11495702,87109.0,87108.0,0.3287862]
[1743035582700,8e-05,87109.0,87108.0,0.3287862]
[1743035582904,0.1148649,87109.0,87108.0,0.3287862]
[1743035583599,8e-05,87109.0,87108.0,0.4787862]
[1743035583801,8e-05,87111.0,87110.0,0.1147836]
[1743035584005,8e-05,87111.0,87110.0,0.1154636]
[1743035584201,0.1721705,87116.0,87115.0,0.0573862]
[1743035584404,0.17313051,87116.0,87115.0,1.9188662]
[1743035584706,0.114774,87118.0,87117.0,0.114773]
[1743035584907,0.114774,87118.0,87117.0,0.115413]
[1743035585100,0.114774,87118.0,87117.0,0.183913]
[1743035585297,0.114774,87118.0,87117.0,0.295233]
[1743035585912,0.1147677,87123.0,87122.0,0.1147677]
[1743035586206,0.11564771,87123.0,87122.0,0.1153677]
[1743035586799,0.11564771,87123.0,87122.0,0.1840677]
[1743035587203,0.1147677,87123.0,87122.0,0.1840677]
[1743035589218,0.11493732,87124.0,87123.0,0.1147664]
[1743035589516,0.11493732,87124.0,87123.0,0.19267381]
[1743035589716,0.11493732,87124.0,87123.0,0.1819664]
[1743035589917,0.11581733,87124.0,87123.0,0.1819664]
[1743035591418,0.11581733,87124.0,87123.0,0.5427664]
[1743035591619,0.11493732,87124.0,87123.0,0.5427664]
[1743035592215,0.00017222,87124.0,87123.0,0.5427664]
[1743035592915,0.00017222,87124.0,87123.0,0.9523664]
[1743035593619,0.11493732,87124.0,87123.0,0.9523664]
[1743035593921,0.11493732,87124.0,87123.0,2.4523664]
[1743035594420,0.00017222,87124.0,87123.0,2.4523664]
[1743035597813,0.00017222,87124.0,87123.0,2.6023664]
[1743035598023,2e-08,87124.0,87123.0,2.6023664]
[1743035598318,0.0004,87137.0,87136.0,0.1147493]
[1743035598523,0.0004,87137.0,87136.0,0.9970693]
[1743035598722,0.0004,87137.0,87136.0,1.0963693]
[1743035605127,0.0004,87137.0,87136.0,2.5963693]
[1743035608433,0.115148,87137.0,87136.0,2.5963693]
[1743035608630,0.034,87137.0,87136.0,2.5963693]
[1743035611040,0.148748,87137.0,87136.0,2.4531493]
[1743035611236,0.148748,87137.0,87136.0,2.3857493]
[1743035611528,0.183348,87137.0,87136.0,2.3857493]
[1743035611928,0.183348,87137.0,87136.0,2.0249493]
[1743035612435,0.18953527,87137.0,87136.0,2.0249493]
[1743035613440,0.18953527,87137.0,87136.0,1.6153493]
[1743035616630,0.183348,87137.0,87136.0,1.6153493]
[1743035620133,0.0686,87137.0,87136.0,1.9761493]
[1743035620435,0.183348,87137.0,87136.0,1.9761493]
[1743035620627,0.183348,87137.0,87136.0,1.5006]
[1743035621423,0.183348,87137.0,87136.0,1.9761493]
[1743035621626,0.183348,87137.0,87136.0,2.0439493]
[1743035623725,0.183348,87137.0,87136.0,1.6497493]
[1743035624130,0.18422801,87137.0,87136.0,1.6497493]
[1743035625034,0.183348,87137.0,87136.0,1.6497493]
[1743035625234,0.183348,87137.0,87136.0,1.6817493]
[1743035625235,0.18941034,87137.0,87136.0,1.6817493]
[1743035625830,0.183348,87137.0,87136.0,1.6817493]
[1743035626926,0.183348,87137.0,87136.0,1.6497493]
[1743035627627,0.18940092,87137.0,87136.0,1.6497493]
[1743035629633,0.18940092,87137.0,87136.0,1.6820493]
[1743035633439,0.18940092,87137.0,87136.0,1.5006]
[1743035633640,0.18940092,87137.0,87136.0,0.0006]
[1743035633953,0.19036093,87137.0,87136.0,0.0006]
[1743035634146,0.19036093,87137.0,87136.0,1.5006]
[1743035634346,0.18940092,87137.0,87136.0,0.0006]
[1743035634648,0.19028093,87137.0,87136.0,0.0006]
[1743035635042,0.18940092,87137.0,87136.0,0.0006]
[1743035635746,0.19032092,87137.0,87136.0,0.0006]
[1743035641950,0.19032092,87137.0,87136.0,0.0364]
[1743035642738,0.184268,87137.0,87136.0,0.0364]
[1743035643747,0.184268,87137.0,87136.0,0.0006]
[1743035643944,0.19031985,87137.0,87136.0,0.0006]
[1743035644248,0.1147533,87133.0,87132.0,0.20497987]
[1743035644447,0.11563331,87133.0,87132.0,0.20557987]
[1743035644655,0.18708516,87133.0,87132.0,0.20557987]
[1743035645553,0.18708516,87133.0,87132.0,0.0006]
[1743035646352,0.19604046,87133.0,87132.0,0.0006]
[1743035647547,0.19614149,87133.0,87132.0,0.0006]
[1743035649342,0.1147559,87131.0,87130.0,0.0334]
[1743035649546,0.1147559,87131.0,87130.0,0.03404]
[1743035649547,0.48553223,87131.0,87130.0,0.03404]
[1743035649756,0.58533223,87131.0,87130.0,0.03404]
[1743035650055,0.59138408,87131.0,87130.0,1.53404]
[1743035650861,0.59134713,87131.0,87130.0,1.53404]
[1743035651352,0.58232775,87131.0,87130.0,1.53404]
[1743035651549,0.5762759,87131.0,87130.0,1.53404]
[1743035652155,0.58529456,87131.0,87130.0,1.53404]
[1743035652357,0.59641144,87131.0,87130.0,1.53404]
[1743035652658,0.24176457,87131.0,87130.0,1.53404]
[1743035652849,0.60256457,87131.0,87130.0,1.53404]
[1743035655050,0.60242466,87131.0,87130.0,1.53404]
[1743035658958,0.60240776,87131.0,87130.0,1.53404]
[1743035660257,0.24160776,87131.0,87130.0,1.53404]
[1743035660459,0.60240776,87131.0,87130.0,1.53404]
[1743035661465,0.60240776,87131.0,87130.0,1.56694]
[1743035664268,0.56870776,87131.0,87130.0,1.56694]
[1743035664464,0.20790776,87131.0,87130.0,1.56694]
[1743035664659,0.56875831,87131.0,87130.0,1.56694]
[1743035668567,0.5688429,87131.0,87130.0,1.56694]
[1743035669764,0.5688429,87131.0,87130.0,0.06694]
[1743035670366,0.55984591,87131.0,87130.0,0.06694]
[1743035671477,0.5687521,87131.0,87130.0,0.06694]
[1743035673178,0.2079521,87131.0,87130.0,0.06694]
[1743035673380,0.5687521,87131.0,87130.0,0.06694]
[1743035674172,0.56874538,87131.0,87130.0,0.06694]
[1743035679088,0.20794538,87131.0,87130.0,0.06694]
[1743035679282,0.56874538,87131.0,87130.0,0.06694]
[1743035680376,0.55984591,87131.0,87130.0,0.06694]
[1743035681186,0.19904591,87131.0,87130.0,0.06694]
[1743035681387,0.56869949,87131.0,87130.0,0.06694]
[1743035682482,0.55984591,87131.0,87130.0,0.06694]
[1743035685188,0.19904591,87131.0,87130.0,0.06694]
[1743035685490,0.55984591,87131.0,87130.0,0.06694]
[1743035686189,0.19904591,87131.0,87130.0,0.06694]
[1743035686496,0.55984591,87131.0,87130.0,0.06694]
[1743035690983,0.55369278,87131.0,87130.0,0.06694]
[1743035692889,0.65701632,87131.0,87130.0,0.06694]
[1743035695184,0.46504354,87131.0,87130.0,0.1816972]
[1743035695394,0.10424354,87131.0,87130.0,0.1816972]
[1743035695691,0.1719085,87141.0,87140.0,0.114744]
[1743035695891,0.17278851,87141.0,87140.0,0.587064]
[1743035696086,0.28753121,87141.0,87140.0,2.121144]
[1743035696292,0.28761121,87141.0,87140.0,1.8954]
[1743035696782,0.32071121,87141.0,87140.0,1.8954]
[1743035696988,0.18110271,87141.0,87140.0,2.010144]
[1743035697287,0.1801427,87141.0,87140.0,2.010144]
[1743035698482,0.1801427,87141.0,87140.0,0.510144]
[1743035698686,0.18102271,87141.0,87140.0,0.543344]
[1743035699195,0.1801427,87141.0,87140.0,0.543344]
[1743035700494,0.1147427,87141.0,87140.0,0.543344]
[1743035700798,0.1156627,87141.0,87140.0,0.543344]
[1743035700999,0.1147427,87141.0,87140.0,0.574644]
[1743035702800,8e-05,87142.0,87141.0,0.1147427]
[1743035702993,0.1148214,87142.0,87141.0,0.1839427]
[1743035703193,8e-05,87142.0,87141.0,0.1839427]
[1743035703589,0.00017222,87145.0,87144.0,0.1147388]
[1743035703788,0.00017222,87145.0,87144.0,0.1839388]
[1743035704091,0.00017222,87145.0,87144.0,1.6839388]
[1743035704793,2e-08,87145.0,87144.0,2.2435388]
[1743035705395,0.1719085,87161.0,87152.0,0.1147282]
[1743035705699,0.1719085,87161.0,87152.0,0.5872082]
[1743035705899,8e-05,87154.0,87152.0,0.5872082]
[1743035706405,8e-05,87154.0,87152.0,0.6570082]
[1743035706795,8e-05,87154.0,87152.0,0.8070082]
[1743035706995,8e-05,87154.0,87152.0,2.3070082]
[1743035707695,0.00017191,87161.0,87160.0,0.1147177]
[1743035708000,0.00105192,87161.0,87160.0,0.8857177]
[1743035708200,0.00017191,87161.0,87160.0,0.8857177]
[1743035708397,0.00017191,87161.0,87160.0,0.9538177]
[1743035709902,0.00017191,87161.0,87160.0,0.96255734]
[1743035710207,0.00017191,87161.0,87160.0,0.60175734]
[1743035710506,0.00017191,87161.0,87160.0,0.96255734]
[1743035710803,0.00017191,87161.0,87160.0,0.60175734]
[1743035711011,0.00017191,87161.0,87160.0,0.96255734]
[1743035712206,0.00017191,87161.0,87160.0,0.97335804]
[1743035713400,1e-08,87161.0,87160.0,2.47335804]
[1743035715604,1e-08,87169.0,87168.0,0.1147072]
[1743035715805,0.0004,87185.0,87184.0,0.1146861]
[1743035716110,0.11596481,87185.0,87184.0,0.8856861]
[1743035716309,0.0004,87185.0,87184.0,2.4513861]
[1743035716703,0.1150848,87185.0,87184.0,2.4513861]
[1743035717014,0.1845848,87185.0,87184.0,2.4513861]
[1743035717307,8e-05,87191.0,87190.0,0.1146782]